bitfinex-derivatives/quotes_BTCF0:USTF0_20250330
["timestamp","ask_amount","ask_price","bid_price","bid_amount"]
[1743306423934,0.01106496,83236.0,83235.0,0.5427154]
[1743306424341,0.13123886,83236.0,83235.0,0.5427154]
[1743306424842,0.14075409,83236.0,83235.0,0.5427154]
[1743306425548,0.17365409,83236.0,83235.0,0.5427154]
[1743306426047,0.23208861,83236.0,83235.0,0.5427154]
[1743306426539,0.07901471,83236.0,83235.0,0.5427154]
[1743306427446,0.07889663,83236.0,83235.0,0.5427154]
[1743306427651,0.06949948,83236.0,83235.0,0.5427154]
[1743306428438,0.18967338,83236.0,83235.0,0.5427154]
[1743306429345,0.18967338,83236.0,83235.0,0.1819154]
[1743306429540,0.18967338,83236.0,83235.0,0.5427154]
[1743306429742,0.19907691,83236.0,83235.0,0.5427154]
[1743306431057,0.06975805,83236.0,83235.0,0.5427154]
[1743306433141,0.01132353,83236.0,83235.0,0.5427154]
[1743306433341,0.01040353,83236.0,83235.0,0.5427154]
[1743306434447,0.01040353,83236.0,83235.0,0.55481639]
[1743306436954,0.01040353,83236.0,83235.0,0.91561639]
[1743306439754,0.01040353,83236.0,83235.0,0.9035154]
[1743306442147,0.14350285,83241.0,83240.0,0.1201681]
[1743306442148,0.14194288,83241.0,83240.0,0.1201681]
[1743306442353,0.14194288,83241.0,83240.0,0.1208481]
[1743306442952,0.14194288,83241.0,83240.0,0.1835481]
[1743306443358,0.14394288,83241.0,83240.0,0.1835481]
[1743306443555,0.14594288,83241.0,83240.0,0.1835481]
[1743306444957,0.14686288,83241.0,83240.0,0.9051481]
[1743306445152,0.14594288,83241.0,83240.0,0.9051481]
[1743306445348,0.004,83241.0,83240.0,0.9051481]
[1743306445960,0.004,83241.0,83240.0,1.0551481]
[1743306448263,0.002,83241.0,83240.0,1.0581481]
[1743306448766,0.17949091,83256.0,83255.0,0.1201465]
[1743306448955,0.18041091,83256.0,83255.0,0.5971465]
[1743306449566,0.18041091,83256.0,83255.0,0.6596465]
[1743306450255,0.10846457,83256.0,83255.0,0.6596465]
[1743306450453,0.10754457,83256.0,83255.0,0.6596465]
[1743306451263,0.10854457,83256.0,83255.0,0.6596465]
[1743306451760,0.10954457,83256.0,83255.0,0.6596465]
[1743306452356,0.10954457,83256.0,83255.0,0.67172937]
[1743306453755,0.14156457,83256.0,83255.0,0.67172937]
[1743306454661,0.14064457,83256.0,83255.0,0.67172937]
[1743306455073,0.0331,83256.0,83255.0,0.67172937]
[1743306456361,0.0341,83256.0,83255.0,0.67172937]
[1743306458568,0.0331,83256.0,83255.0,0.67172937]
[1743306459768,0.002,83256.0,83255.0,0.67172937]
[1743306461470,0.066,83256.0,83255.0,0.67172937]
[1743306461670,0.066,83256.0,83255.0,0.55616937]
[1743306461864,0.07538692,83256.0,83255.0,0.67168937]
[1743306462169,0.19553192,83256.0,83255.0,0.4815865]
[1743306462366,0.19645192,83256.0,83255.0,0.4815865]
[1743306462669,0.07630692,83256.0,83255.0,0.4815865]
[1743306463169,0.07538692,83256.0,83255.0,0.4815865]
[1743306463567,0.07630692,83256.0,83255.0,0.4815865]
[1743306464674,0.07538692,83256.0,83255.0,0.5118865]
[1743306464861,0.01138692,83256.0,83255.0,0.5118865]
[1743306465062,0.002,83256.0,83255.0,0.5739865]
[1743306466966,0.0114383,83256.0,83255.0,0.5739865]
[1743306469768,0.0114383,83256.0,83255.0,0.5435865]
[1743306469974,0.0114383,83256.0,83255.0,0.6591065]
[1743306470673,0.01152134,83256.0,83255.0,0.4815865]
[1743306471068,0.01248135,83256.0,83255.0,0.4815865]
[1743306472281,0.13262635,83256.0,83255.0,0.4815865]
[1743306472468,0.13258634,83256.0,83255.0,0.4815865]
[1743306473170,0.14472658,83256.0,83255.0,0.4815865]
[1743306473371,0.13258634,83256.0,83255.0,0.4815865]
[1743306474071,0.01244134,83256.0,83255.0,0.8423865]
[1743306474271,0.01152134,83256.0,83255.0,0.9070865]
[1743306475377,0.01152134,83256.0,83255.0,0.91906901]
[1743306476171,0.0117284,83256.0,83255.0,0.91906901]
[1743306478079,0.01173982,83256.0,83255.0,0.91906901]
[1743306481281,0.01179744,83256.0,83255.0,0.91906901]
[1743306482482,0.01179744,83256.0,83255.0,0.55826901]
[1743306485480,0.02140348,83256.0,83255.0,0.55826901]
[1743306486386,0.01179744,83256.0,83255.0,0.55826901]
[1743306489885,0.01179744,83256.0,83255.0,0.92486901]
[1743306489886,0.002,83256.0,83255.0,0.92486901]
[1743306493278,0.002,83256.0,83255.0,1.28566901]
[1743306495082,0.01166779,83256.0,83255.0,1.28566901]
[1743306496588,0.01166779,83256.0,83255.0,1.40118901]
[1743306498290,0.01166779,83256.0,83255.0,0.67958901]
[1743306498487,0.01166779,83256.0,83255.0,1.40118901]
[1743306499191,0.002,83256.0,83255.0,1.40118901]
[1743306500993,0.00018026,83260.0,83259.0,0.1201407]
[1743306501192,0.00018026,83260.0,83259.0,0.1207807]
[1743306501789,0.10805569,83268.0,83267.0,0.1201292]
[1743306501984,0.11880002,83268.0,83267.0,0.5971292]
[1743306502189,0.11780004,83268.0,83267.0,0.5971292]
[1743306502587,0.11780004,83268.0,83267.0,0.6593292]
[1743306503492,0.12180004,83268.0,83267.0,0.6593292]
[1743306504691,0.01414435,83268.0,83267.0,0.6593292]
[1743306505605,0.01402555,83268.0,83267.0,0.6593292]
[1743306506398,0.01002555,83268.0,83267.0,0.6593292]
[1743306506598,0.01302555,83268.0,83267.0,0.6593292]
[1743306507300,0.01308446,83268.0,83267.0,0.6593292]
[1743306507599,0.01308446,83268.0,83267.0,1.0201292]
[1743306509195,0.0034,83268.0,83267.0,1.0201292]
[1743306510397,0.01298588,83268.0,83267.0,1.0201292]
[1743306511699,0.0034,83268.0,83267.0,1.0201292]
[1743306512198,0.0034,83268.0,83267.0,0.2985292]
[1743306512603,0.0034,83268.0,83267.0,1.0201292]
[1743306513291,0.0034,83268.0,83267.0,0.2985292]
[1743306513492,0.0034,83268.0,83267.0,1.0201292]
[1743306513896,0.01299751,83268.0,83267.0,1.0201292]
[1743306514303,0.07619751,83268.0,83267.0,1.0201292]
[1743306515503,0.04339751,83268.0,83267.0,1.0201292]
[1743306516104,0.07639751,83268.0,83267.0,1.0201292]
[1743306516503,0.07639751,83268.0,83267.0,0.2985292]
[1743306517011,0.07639751,83268.0,83267.0,1.0201292]
[1743306523614,0.07639751,83268.0,83267.0,0.2985292]
[1743306523814,0.07639751,83268.0,83267.0,1.0201292]
[1743306526311,0.07647688,83268.0,83267.0,1.0201292]
[1743306527507,0.07647688,83268.0,83267.0,0.2985292]
[1743306528124,0.07647688,83268.0,83267.0,1.0201292]
[1743306528318,0.07647688,83268.0,83267.0,0.2985292]
[1743306528619,0.07647688,83268.0,83267.0,1.0201292]
[1743306531114,0.04347688,83268.0,83267.0,1.0201292]
[1743306531315,0.01307688,83268.0,83267.0,1.0201292]
[1743306531515,0.10765569,83271.0,83270.0,0.1201248]
[1743306531717,0.10765569,83271.0,83270.0,0.4873648]
[1743306532117,0.10765569,83271.0,83270.0,0.53307553]
[1743306532420,0.10765569,83271.0,83270.0,0.5516648]
[1743306532622,0.10765569,83271.0,83270.0,0.5973674]
[1743306532811,0.10865569,83271.0,83270.0,0.5973674]
[1743306534617,0.04858835,83271.0,83270.0,0.5973674]
[1743306534808,0.02668835,83271.0,83270.0,0.5973674]
[1743306535012,0.01963835,83271.0,83270.0,0.5973674]
[1743306535213,0.01258835,83271.0,83270.0,0.5973674]
[1743306535420,0.14359845,83276.0,83275.0,0.1201176]
[1743306535613,0.14451845,83276.0,83275.0,0.4815576]
[1743306536317,0.14451845,83276.0,83275.0,0.5456576]
[1743306537119,0.00110014,83276.0,83275.0,0.5456576]
[1743306537328,0.00018014,83276.0,83275.0,0.5456576]
[1743306537916,0.00018014,83276.0,83275.0,0.9064576]
[1743306541719,0.00018014,83276.0,83275.0,0.9074576]
[1743306542621,0.00018014,83276.0,83275.0,0.1858576]
[1743306542816,0.00018014,83276.0,83275.0,0.9074576]
[1743306543217,0.00018014,83276.0,83275.0,0.9094576]
[1743306545825,0.00018014,83276.0,83275.0,1.0248976]
[1743306546030,0.00018014,83276.0,83275.0,0.9094576]
[1743306546225,0.00018014,83276.0,83275.0,1.0248976]
[1743306546421,0.00956918,83276.0,83275.0,1.0248976]
[1743306546830,0.00956918,83276.0,83275.0,0.9094576]
[1743306547129,0.00956918,83276.0,83275.0,1.0248976]
[1743306547921,0.00959975,83276.0,83275.0,1.0248976]
[1743306550324,0.00959975,83276.0,83275.0,0.8453576]
[1743306550646,0.00959975,83276.0,83275.0,0.9607976]
[1743306551532,0.00959975,83276.0,83275.0,0.9108576]
[1743306551832,0.00969622,83276.0,83275.0,1.0262976]
[1743306552631,0.00969622,83276.0,83275.0,0.9607976]
[1743306553035,0.00969622,83276.0,83275.0,1.17661765]
[1743306555439,0.00983609,83276.0,83275.0,1.17661765]
[1743306556421,0.00983609,83276.0,83275.0,1.06117765]
[1743306556630,0.00983609,83276.0,83275.0,1.17661765]
[1743306557027,0.00983609,83276.0,83275.0,1.06117765]
[1743306557232,0.00983609,83276.0,83275.0,0.8453576]
[1743306557423,0.0099133,83276.0,83275.0,0.8453576]
[1743306557829,0.0405133,83276.0,83275.0,0.8453576]
[1743306558033,0.0709133,83276.0,83275.0,0.8453576]
[1743306558232,0.3410295,83276.0,83275.0,0.36444]
[1743306558431,0.3419495,83276.0,83275.0,0.31454]
[1743306558631,0.35420277,83276.0,83275.0,0.31522]
[1743306559441,0.35420277,83276.0,83275.0,0.4353376]
[1743306559644,0.35420277,83276.0,83275.0,0.31522]
[1743306559841,0.35620277,83276.0,83275.0,0.31522]
[1743306560735,0.35720277,83276.0,83275.0,0.31522]
[1743306560938,0.35720277,83276.0,83275.0,0.4353376]
[1743306561249,0.42523725,83276.0,83275.0,0.4353376]
[1743306562334,0.42522578,83276.0,83275.0,0.4353376]
[1743306563943,0.29548968,83276.0,83275.0,0.1207976]
[1743306564242,0.14548968,83276.0,83275.0,0.1207976]
[1743306564444,0.13323641,83276.0,83275.0,0.1207976]
[1743306565541,0.13323641,83276.0,83275.0,0.5122976]
[1743306565746,0.07483783,83276.0,83275.0,0.5122976]
[1743306565945,0.07391783,83276.0,83275.0,0.5122976]
[1743306566246,0.07191783,83276.0,83275.0,0.5122976]
[1743306566445,0.07391783,83276.0,83275.0,0.5122976]
[1743306566645,0.07391783,83276.0,83275.0,0.52439135]
[1743306566845,0.07191783,83276.0,83275.0,0.52439135]
[1743306568241,0.07191783,83276.0,83275.0,0.52539135]
[1743306568441,0.07091783,83276.0,83275.0,0.52539135]
[1743306569540,0.07091783,83276.0,83275.0,0.52439135]
[1743306570453,0.07063419,83276.0,83275.0,0.52539135]
[1743306570744,0.07063419,83276.0,83275.0,0.5132976]
[1743306571352,0.0717542,83276.0,83275.0,0.5132976]
[1743306571540,0.10373419,83276.0,83275.0,0.5132976]
[1743306572146,0.10489419,83276.0,83275.0,0.5132976]
[1743306572545,0.10373419,83276.0,83275.0,0.5132976]
[1743306572747,0.10489419,83276.0,83275.0,0.5132976]
[1743306572948,0.10373419,83276.0,83275.0,0.5132976]
[1743306574441,0.1048542,83276.0,83275.0,0.5132976]
[1743306575644,0.0717542,83276.0,83275.0,0.5132976]
[1743306576151,0.0718919,83276.0,83275.0,0.1524976]
[1743306576359,0.0718919,83276.0,83275.0,0.5132976]
[1743306578952,0.1920081,83276.0,83275.0,0.5132976]
[1743306579150,0.20163197,83276.0,83275.0,0.5132976]
[1743306579945,0.14063197,83276.0,83275.0,0.4825976]
[1743306580942,0.14063197,83276.0,83275.0,0.36248]
[1743306581144,0.29063197,83276.0,83275.0,0.36248]
[1743306581345,0.29063197,83276.0,83275.0,0.4825976]
[1743306581745,0.29063197,83276.0,83275.0,0.36248]
[1743306583050,0.29163197,83276.0,83275.0,0.36248]
[1743306583249,0.29363197,83276.0,83275.0,0.4815976]
[1743306584251,0.29363197,83276.0,83275.0,0.1207976]
[1743306585363,0.14363197,83276.0,83275.0,0.1207976]
[1743306585953,0.1340081,83276.0,83275.0,0.1207976]
[1743306586458,0.0138919,83276.0,83275.0,0.1207976]
[1743306586860,0.07229017,83276.0,83275.0,0.1207976]
[1743306590670,0.0138919,83276.0,83275.0,0.1207976]
[1743306591269,0.0138919,83276.0,83275.0,0.4815976]
[1743306593871,0.1340081,83276.0,83275.0,0.4815976]
[1743306595369,0.1958081,83276.0,83275.0,0.5432976]
[1743306598269,0.1958081,83276.0,83275.0,0.1824976]
[1743306598270,0.25420365,83276.0,83275.0,0.1824976]
[1743306598673,0.25418656,83276.0,83275.0,0.5432976]
[1743306600664,0.25417541,83276.0,83275.0,0.5432976]
[1743306600865,0.13405921,83276.0,83275.0,0.5432976]
[1743306601565,0.07225921,83276.0,83275.0,0.5432976]
[1743306605573,0.07220781,83276.0,83275.0,0.5432976]
[1743306606074,0.01381226,83276.0,83275.0,0.5432976]
[1743306610178,0.04551226,83276.0,83275.0,0.5432976]
[1743306610575,0.04551226,83276.0,83275.0,0.1824976]
[1743306610777,0.04551226,83276.0,83275.0,0.5432976]
[1743306611675,0.07551226,83276.0,83275.0,0.5432976]
[1743306612073,0.07551226,83276.0,83275.0,0.1824976]
[1743306612281,0.19562846,83276.0,83275.0,0.1824976]
[1743306612481,0.19562846,83276.0,83275.0,0.1518976]
[1743306613871,0.19562846,83276.0,83275.0,0.1207976]
[1743306615479,0.19562846,83276.0,83275.0,0.1511976]
[1743306615680,0.19562846,83276.0,83275.0,0.1815976]
[1743306616979,0.40252019,83276.0,83275.0,0.1815976]
[1743306617786,0.40252019,83276.0,83275.0,0.1511976]
[1743306618692,0.40252599,83276.0,83275.0,0.1511976]
[1743306619186,0.40252599,83276.0,83275.0,0.1207976]
[1743306620490,0.40252599,83276.0,83275.0,0.1864976]
[1743306620994,0.25403456,83276.0,83275.0,0.1864976]
[1743306621681,0.25403456,83276.0,83275.0,0.1207976]
[1743306622089,0.25403456,83276.0,83275.0,0.00068]
[1743306622484,0.25404108,83276.0,83275.0,0.00068]
[1743306624689,0.25404108,83276.0,83275.0,0.1207976]
[1743306625192,0.12440045,83276.0,83275.0,0.2171976]
[1743306625392,0.06270045,83276.0,83275.0,0.2171976]
[1743306625582,0.06158044,83276.0,83275.0,0.2171976]
[1743306626092,0.06270045,83276.0,83275.0,0.2171976]
[1743306626493,0.06158044,83276.0,83275.0,0.2171976]
[1743306626697,0.06278045,83276.0,83275.0,0.2171976]
[1743306628294,0.00438015,83276.0,83275.0,0.2171976]
[1743306631895,0.00318014,83276.0,83275.0,0.2171976]
[1743306632683,0.00430015,83276.0,83275.0,0.5779976]
[1743306635097,0.00430015,83276.0,83275.0,0.2171976]
[1743306635292,0.00430015,83276.0,83275.0,0.5779976]
[1743306636394,0.12441635,83276.0,83275.0,0.5447976]
[1743306637085,0.15501635,83276.0,83275.0,0.5447976]
[1743306637883,0.16682589,83276.0,83275.0,0.5447976]
[1743306640697,0.22522194,83276.0,83275.0,0.5447976]
[1743306641497,0.22522194,83276.0,83275.0,0.1839976]
[1743306644001,0.2134124,83276.0,83275.0,0.1839976]
[1743306644202,0.0932962,83276.0,83275.0,0.1839976]
[1743306645602,0.1245962,83276.0,83275.0,0.1839976]
[1743306646402,0.2447124,83276.0,83275.0,0.1839976]
[1743306647892,0.42429797,83276.0,83275.0,0.1839976]
[1743306651403,0.36590192,83276.0,83275.0,0.1839976]
[1743306651609,0.36590192,83276.0,83275.0,0.5447976]
[1743306652809,0.36590192,83276.0,83275.0,0.1839976]
[1743306653104,0.36590192,83276.0,83275.0,0.5447976]
[1743306655205,0.36590192,83276.0,83275.0,0.1839976]
[1743306655411,0.18631635,83276.0,83275.0,0.1839976]
[1743306656107,0.18631635,83276.0,83275.0,0.1512976]
[1743306656611,0.18631635,83276.0,83275.0,0.1841976]
[1743306659507,0.24471465,83276.0,83275.0,0.1841976]
[1743306669317,0.20163978,83289.0,83288.0,0.1200989]
[1743306669509,0.20243978,83289.0,83288.0,0.5963389]
[1743306669814,0.20243978,83289.0,83288.0,0.5970589]
[1743306671220,0.20243978,83289.0,83288.0,0.60594993]
[1743306671809,0.20343978,83289.0,83288.0,0.60594993]
[1743306672014,0.20443978,83289.0,83288.0,0.60594993]
[1743306672524,0.20443978,83289.0,83288.0,0.66704993]
[1743306672826,0.20443978,83289.0,83288.0,0.69754993]
[1743306672827,0.0028,83289.0,83288.0,0.69754993]
[1743306673011,0.00276,83289.0,83288.0,0.69754993]
[1743306675327,0.002,83289.0,83288.0,0.69754993]
[1743306677121,0.00018014,83297.0,83296.0,0.1200874]
[1743306677320,0.00094014,83297.0,83296.0,0.4808874]
[1743306677527,0.0959,83315.0,83306.0,0.1200729]
[1743306677718,0.18015835,83307.0,83306.0,0.5969529]
[1743306677920,0.17947835,83307.0,83306.0,0.5969529]
[1743306678537,0.17947835,83311.0,83310.0,0.1200672]
[1743306678720,0.17947835,83311.0,83310.0,0.4815472]
[1743306679124,0.17947835,83311.0,83310.0,0.5428472]
[1743306679430,0.17947835,83311.0,83310.0,0.55491998]
[1743306679820,0.18047835,83311.0,83310.0,0.55491998]
[1743306682833,0.001,83311.0,83310.0,0.55491998]
[1743306683033,0.001,83311.0,83310.0,0.91571998]
[1743306685423,0.0631185,83315.0,83314.0,0.1200614]
[1743306685627,0.0631185,83315.0,83314.0,0.1207814]
[1743306685826,0.0942185,83315.0,83314.0,0.1207814]
[1743306686032,0.0942185,83315.0,83314.0,0.2361814]
[1743306686229,0.0942185,83315.0,83314.0,0.2679814]
[1743306686431,0.0942185,83315.0,83314.0,0.2361814]
[1743306686629,0.2142785,83315.0,83314.0,0.1207814]
[1743306686828,0.2150385,83315.0,83314.0,0.1207814]
[1743306687028,0.10664397,83315.0,83314.0,0.1207814]
[1743306687426,0.10668397,83315.0,83314.0,0.1207814]
[1743306688325,0.22674397,83315.0,83314.0,0.1207814]
[1743306697847,0.22674397,83315.0,83314.0,0.4815814]
[1743306698042,0.22674397,83315.0,83314.0,0.36152]
[1743306699038,0.22674397,83315.0,83314.0,0.4815814]
[1743306704244,0.22674397,83315.0,83314.0,0.1207814]
[1743306704457,0.22674397,83315.0,83314.0,0.4815814]
[1743306707449,0.1200729,83306.0,83305.0,8e-05]
[1743306707635,0.1208329,83306.0,83305.0,0.1207944]
[1743306708351,0.33697299,83306.0,83305.0,0.1207944]
[1743306709939,0.33697299,83306.0,83305.0,0.00072]
[1743306710148,0.1200744,83305.0,83304.0,0.36088]
[1743306710341,0.1208344,83305.0,83304.0,0.00072]
[1743306710547,0.1836344,83305.0,83304.0,0.00072]
[1743306710849,0.1836344,83305.0,83304.0,8e-05]
[1743306710850,0.30367449,83305.0,83304.0,8e-05]
[1743306711243,0.120083,83299.0,83298.0,0.00018014]
[1743306711544,0.120083,83299.0,83298.0,0.00082014]
[1743306711545,0.120843,83299.0,83298.0,0.00082014]
[1743306712239,0.184743,83299.0,83298.0,0.00082014]
[1743306713947,0.545543,83299.0,83298.0,0.00082014]
[1743306714147,0.545543,83299.0,83298.0,0.00018014]
[1743306714450,0.660903,83299.0,83298.0,0.00018014]
[1743306720055,0.89851854,83299.0,83298.0,0.00018014]
[1743306722254,0.53771854,83299.0,83298.0,0.00018014]
[1743306722449,0.89851854,83299.0,83298.0,0.00094014]
[1743306722650,0.89851854,83299.0,83298.0,0.00018014]
[1743306722950,0.89851854,83299.0,83298.0,0.03118014]
[1743306723157,0.89851854,83299.0,83298.0,0.15126464]
[1743306723357,0.89851854,83299.0,83298.0,0.18364464]
[1743306723657,0.660903,83299.0,83298.0,0.18364464]
[1743306725158,0.660903,83299.0,83298.0,0.06356014]
[1743306726551,0.300103,83299.0,83298.0,0.18364464]
[1743306727068,0.00076,83299.0,83298.0,0.18364464]
[1743306727359,0.120843,83299.0,83298.0,0.18364464]
[1743306730756,0.00076,83299.0,83298.0,0.18364464]
[1743306730966,0.17922527,83302.0,83301.0,0.1200801]
[1743306731258,0.17998527,83302.0,83301.0,0.4815201]
[1743306731857,0.00076,83302.0,83301.0,0.4815201]
[1743306732162,0.1208387,83302.0,83301.0,0.4815201]
[1743306733554,0.13307742,83302.0,83301.0,0.4815201]
[1743306733756,0.19767742,83302.0,83301.0,0.5457201]
[1743306734454,0.19767742,83302.0,83301.0,0.42564]
[1743306734856,0.19767742,83302.0,83301.0,0.5457201]
[1743306737555,0.19767742,83302.0,83301.0,0.1849201]
[1743306739168,0.19767742,83302.0,83301.0,0.00064]
[1743306739957,0.19767742,83302.0,83301.0,0.1207201]
[1743306740366,0.19767742,83302.0,83301.0,0.1855201]
[1743306741769,0.19767742,83302.0,83301.0,0.06544]
[1743306743068,0.2560615,83302.0,83301.0,0.1848801]
[1743306743260,0.2560615,83302.0,83301.0,0.1855201]
[1743306744063,0.2560615,83302.0,83301.0,0.1848801]
[1743306744458,0.2560615,83302.0,83301.0,0.1856401]
[1743306749369,0.1032828,83302.0,83301.0,0.5464401]
[1743306749574,0.09104408,83302.0,83301.0,0.5790401]
[1743306751266,0.21112278,83302.0,83301.0,0.5790401]
[1743306751466,0.22291695,83302.0,83301.0,0.5790401]
[1743306753871,0.25331695,83302.0,83301.0,0.5790401]
[1743306754279,0.19493287,83302.0,83301.0,0.5790401]
[1743306754971,0.19493287,83302.0,83301.0,0.5464401]
[1743306757874,0.37430976,83302.0,83301.0,0.5464401]
[1743306760078,0.37430976,83302.0,83301.0,0.1856401]
[1743306760277,0.37430976,83302.0,83301.0,0.5464401]
[1743306761583,0.25331267,83302.0,83301.0,0.5464401]
[1743306761965,0.25331267,83302.0,83301.0,0.1856401]
[1743306763578,0.13323397,83302.0,83301.0,0.1856401]
[1743306763882,0.1214398,83302.0,83301.0,0.1856401]
[1743306764273,0.2415185,83302.0,83301.0,0.1856401]
[1743306765277,0.25336903,83302.0,83301.0,0.1856401]
[1743306770383,0.2415185,83302.0,83301.0,0.1856401]
[1743306773786,0.25381375,83302.0,83301.0,0.1856401]
[1743306778401,0.1214398,83302.0,83301.0,0.1856401]
[1743306780902,0.1214398,83302.0,83301.0,0.5464401]
[1743306781204,0.06306,83302.0,83301.0,0.5464401]
[1743306784807,0.06306,83302.0,83301.0,0.1856401]
[1743306785001,0.06306,83302.0,83301.0,0.5464401]
[1743306786104,0.06306,83302.0,83301.0,0.1856401]
[1743306786302,0.06306,83302.0,83301.0,0.5464401]
[1743306787307,0.06306,83302.0,83301.0,0.1856401]
[1743306787501,0.06306,83302.0,83301.0,0.5464401]
[1743306793107,0.17949268,83305.0,83304.0,0.1200758]
[1743306793407,0.17949268,83305.0,83304.0,0.1208358]
[1743306793408,0.18025268,83305.0,83304.0,0.1208358]
[1743306793811,0.18025268,83305.0,83304.0,0.1328584]
[1743306794000,0.18025268,83305.0,83304.0,0.1973584]
[1743306795104,0.18125268,83305.0,83304.0,0.1973584]
[1743306796412,0.00176,83305.0,83304.0,0.5581584]
[1743306797613,0.03286,83305.0,83304.0,0.5581584]
[1743306799316,0.03286,83305.0,83304.0,0.1973584]
[1743306799509,0.03286,83305.0,83304.0,0.5581584]
[1743306799921,0.001,83305.0,83304.0,0.5581584]
[1743306800218,0.001,83305.0,83304.0,0.6734784]
[1743306806219,0.14346569,83312.0,83305.0,0.060037]
[1743306806427,0.14346569,83312.0,83311.0,0.4808657]
[1743306806611,0.14426569,83312.0,83311.0,0.4816657]
[1743306807324,0.14426569,83312.0,83311.0,0.5451657]
[1743306807514,0.14426569,83312.0,83311.0,0.9117657]
[1743306807817,0.0008,83312.0,83311.0,0.9117657]
[1743306808026,0.0001185,83315.0,83314.0,0.1200614]
[1743306808219,0.0314185,83315.0,83314.0,0.2360614]
[1743306809022,0.0314185,83315.0,83314.0,0.2979614]
[1743306809826,0.0636185,83315.0,83314.0,0.2979614]
[1743306812327,0.0636185,83315.0,83314.0,0.30690403]
[1743306812923,0.0636185,83315.0,83314.0,1.02850403]
[1743306814924,0.0636185,83315.0,83314.0,0.30690403]
[1743306815226,0.0636185,83315.0,83314.0,1.02850403]
[1743306817037,0.0636185,83315.0,83314.0,0.91322403]
[1743306817223,0.0636185,83315.0,83314.0,1.02850403]
[1743306819922,0.0636185,83315.0,83314.0,0.30690403]
[1743306820125,0.0636185,83315.0,83314.0,1.02850403]
[1743306823927,0.0636185,83315.0,83314.0,0.30690403]
[1743306824231,0.0636185,83315.0,83314.0,1.02850403]
[1743306826735,0.0636185,83315.0,83314.0,0.30690403]
[1743306827133,0.0636185,83315.0,83314.0,1.02850403]
[1743306827938,0.0636185,83315.0,83314.0,1.24392354]
[1743306829629,0.0636185,83315.0,83314.0,0.52232354]
[1743306829838,0.0636185,83315.0,83314.0,1.24392354]
[1743306831637,0.0636185,83315.0,83314.0,1.02850403]
[1743306832933,0.0636185,83315.0,83314.0,0.30690403]
[1743306833238,0.0636185,83315.0,83314.0,1.02850403]
[1743306833746,0.0636185,83315.0,83314.0,0.9576214]
[1743306833941,0.0636185,83315.0,83314.0,0.8423814]
[1743306836343,0.07301535,83315.0,83314.0,0.8423814]
[1743306836936,0.19307535,83315.0,83314.0,0.8423814]
[1743306837332,0.19387535,83315.0,83314.0,0.8423814]
[1743306837537,0.19379535,83315.0,83314.0,0.1207814]
[1743306840248,0.37328803,83315.0,83314.0,0.1207814]
[1743306840445,0.37328803,83315.0,83314.0,0.00072]
[1743306842056,0.37328803,83315.0,83314.0,0.1207814]
[1743306842546,0.37328803,83315.0,83314.0,0.00072]
[1743306843541,0.36389118,83315.0,83314.0,0.00072]
[1743306844453,0.4839183,83315.0,83314.0,0.00072]
[1743306844845,0.30442562,83315.0,83314.0,0.00072]
[1743306847551,0.31386275,83315.0,83314.0,0.00072]
[1743306849650,0.31385044,83315.0,83314.0,0.00072]
[1743306850357,0.1200614,83314.0,83313.0,8e-05]
[1743306850652,0.13020622,83314.0,83313.0,8e-05]
[1743306850948,0.19230622,83314.0,83313.0,8e-05]
[1743306851149,0.67313334,83314.0,83313.0,8e-05]
[1743306852249,0.67313334,83314.0,83313.0,0.0008]
[1743306852450,0.66370852,83314.0,83313.0,0.0008]
[1743306852663,0.66370852,83314.0,83313.0,0.1201428]
[1743306853362,0.66370852,83314.0,83313.0,8e-05]
[1743306854566,0.67308491,83314.0,83313.0,8e-05]
[1743306856561,0.67308491,83314.0,83290.0,0.4208478]
[1743306856562,0.0600339,83310.0,83290.0,0.4208478]
[1743306856861,0.120083,83299.0,83298.0,0.00026014]
[1743306857058,0.24541939,83299.0,83298.0,0.00026014]
[1743306857360,0.24541939,83299.0,83298.0,0.00018014]
[1743306857746,0.30971939,83299.0,83298.0,0.00118014]
[1743306857951,0.42976957,83299.0,83298.0,0.00118014]
[1743306859251,0.42976957,83299.0,83298.0,0.00018014]
[1743306859761,0.57976957,83299.0,83294.0,8e-05]
[1743306859951,0.57976957,83299.0,83274.0,0.28781924]
[1743306859952,0.0600458,83293.0,83275.0,0.06053843]
[1743306860151,0.3608,83295.0,83281.0,0.4809078]
[1743306860152,0.1201075,83282.0,83281.0,0.4809078]
[1743306860464,0.12948389,83282.0,83281.0,0.4809078]
[1743306860761,0.14564395,83282.0,83281.0,0.4809078]
[1743306860960,0.21855182,83282.0,83281.0,0.4816278]
[1743306861162,0.21683182,83282.0,83281.0,0.5416078]
[1743306861664,0.22587798,83282.0,83281.0,0.5416078]
[1743306862553,0.2266723,83282.0,83281.0,0.5416078]
[1743306863065,0.2246723,83282.0,83281.0,0.5416078]
[1743306863561,0.2246723,83282.0,83281.0,0.5436078]
[1743306863756,0.2246723,83282.0,83281.0,0.3928]
[1743306864057,0.2246723,83282.0,83281.0,0.3908]
[1743306864262,0.2256723,83282.0,83281.0,0.3908]
[1743306864463,0.2256735,83282.0,83281.0,0.4211]
[1743306864856,0.23745262,83282.0,83281.0,0.3908]
[1743306865366,0.23745262,83282.0,83281.0,0.03]
[1743306865864,0.25408898,83282.0,83281.0,0.03]
[1743306866263,0.25472898,83282.0,83281.0,0.03]
[1743306866861,0.27233702,83282.0,83281.0,0.03]
[1743306867060,0.27533702,83282.0,83281.0,0.03]
[1743306867263,0.27833702,83282.0,83281.0,0.03]
[1743306867458,0.24408807,83282.0,83281.0,0.03]
[1743306867767,0.26119377,83282.0,83281.0,0.03]
[1743306868865,0.62199377,83282.0,83281.0,0.03]
[1743306869065,0.62199377,83282.0,83277.0,8e-05]
[1743306869261,0.1201162,83276.0,83273.0,0.00018014]
[1743306869570,0.14855296,83276.0,83275.0,0.00132033]
[1743306870067,0.29515476,83276.0,83275.0,0.00132033]
[1743306870864,0.29515476,83276.0,83275.0,0.00048033]
[1743306871057,0.29715476,83276.0,83275.0,0.00048033]
[1743306872153,0.1201191,83274.0,83273.0,0.00018014]
[1743306872361,0.62651586,83274.0,83273.0,0.00018014]
[1743306872656,0.62651586,83274.0,83273.0,0.00090014]
[1743306872860,0.71584009,83274.0,83273.0,0.00018014]
[1743306873270,0.71684009,83274.0,83273.0,0.00094014]
[1743306873568,0.71884009,83274.0,83273.0,0.00094014]
[1743306873767,0.69004333,83274.0,83273.0,0.00018014]
[1743306873966,0.71966883,83274.0,83273.0,0.00018014]
[1743306874165,0.83975505,83274.0,83273.0,0.00018014]
[1743306876355,0.0600658,83266.0,83262.0,8e-05]
[1743306876559,0.4809349,83263.0,83262.0,0.00072]
[1743306876760,0.1201393,83260.0,83259.0,0.00048043]
[1743306876965,0.16026043,83260.0,83259.0,0.00120043]
[1743306877166,0.16026043,83260.0,83259.0,0.00048043]
[1743306877670,0.27836684,83260.0,83259.0,0.00048043]
[1743306877869,0.32346672,83260.0,83259.0,0.00048043]